bitfinex-derivatives/quotes_SOLF0:USTF0_20241107
["timestamp","ask_amount","ask_price","bid_price","bid_amount"]
[1731010215516,51.41442269,197.32,197.22,2.5319]
[1731010215717,63.58138162,197.32,197.22,2.5319]
[1731010215917,63.58138162,197.32,197.2,12.16695893]
[1731010216111,12.16695893,197.27,197.17,1.1751]
[1731010216419,2.5332,197.13,197.01,2.53300827]
[1731010216627,2.5332,197.13,197.06,12.16695893]
[1731010217219,12.16695893,197.19,197.08,12.16695893]
[1731010217516,3.44,197.2,197.07,19.46289367]
[1731010218109,22.90289367,197.23,197.07,19.46289367]
[1731010218715,2.5327,197.17,197.1,2.5334]
[1731010219509,3.44,197.23,197.1,22.90289367]
[1731010219709,3.44,197.23,197.11,4.9588]
[1731010219913,3.44,197.23,197.11,2.4254]
[1731010220416,20.22154284,197.22,197.04,22.90289367]
[1731010220622,0.75864917,197.21,197.04,25.37499367]
[1731010221313,0.75864917,197.21,197.07,2.5339]
[1731010221614,19.46289367,197.22,197.07,2.5339]
[1731010221816,2.5332,197.14,197.08,2.5338]
[1731010222212,19.46289367,197.22,197.08,2.5338]
[1731010222618,2.5332,197.14,197.08,2.5338]
[1731010222814,19.46289367,197.22,197.09,2.5337]
[1731010223015,2.5325,197.19,197.07,19.46289367]
[1731010223218,3.44,197.23,197.07,19.46289367]
[1731010223525,19.46289367,197.21,197.07,19.46289367]
[1731010223720,2.5329,197.15,197.09,2.5336]
[1731010224017,19.46289367,197.21,197.07,19.46289367]
[1731010224221,19.46289367,197.21,197.01,2.48635829]
[1731010224422,19.46289367,197.15,196.98,19.46289367]
[1731010224721,5.8952,197.14,196.98,19.46289367]
[1731010224928,2.5335,197.07,196.98,19.46289367]
[1731010225119,2.5335,197.07,196.99,3.42]
[1731010225315,5.8952,197.14,197.01,19.46289367]
[1731010225520,4.6526,197.14,197.04,19.46289367]
[1731010225719,4.6526,197.14,197.05,4.5917]
[1731010225720,1.2326,197.14,197.05,4.5917]
[1731010226023,1.2326,197.14,197.07,2.5334]
[1731010226223,3.42,197.19,197.05,4.5917]
[1731010226521,19.46289367,197.23,197.07,19.46289367]
[1731010226730,5.7918,197.24,197.11,19.46289367]
[1731010226918,5.7918,197.24,197.11,22.88289367]
[1731010227126,5.7918,197.24,197.14,2.5325]
[1731010227423,5.7918,197.24,197.11,22.88289367]
[1731010227615,2.5322,197.19,197.14,2.5327]
[1731010227818,5.7918,197.24,197.14,2.5327]
[1731010228125,4.5951,197.24,197.12,1.2279]
[1731010228423,1.1751,197.24,197.12,1.2279]
[1731010228817,1.1751,197.24,197.12,2.4094]
[1731010229423,2.5317,197.23,197.16,2.5324]
[1731010231321,2.5317,197.23,197.12,2.4094]
[1731010231523,1.1751,197.24,197.12,1.2279]
[1731010232119,2.5324,197.17,197.12,3.7609]
[1731010234931,2.5331,197.12,197.07,2.5337]
[1731010235429,19.46289367,197.19,197.05,1.1717]
[1731010235630,19.46289367,197.19,197.08,2.5335]
[1731010236429,2.5329,197.14,197.09,2.5334]
[1731010236629,19.46289367,197.19,197.09,2.5334]
[1731010237936,2.5325,197.16,197.09,2.5334]
[1731010238137,19.46289367,197.19,197.09,2.5334]
[1731010239132,2.5325,197.16,197.09,2.5334]
[1731010239337,19.46289367,197.19,197.09,2.5334]
[1731010239636,19.46289367,197.19,197.1,2.5332]
[1731010239823,2.5327,197.15,197.1,2.5332]
[1731010241430,2.5323,197.19,197.13,2.5328]
[1731010241831,2.5323,197.19,197.07,19.46289367]
[1731010242032,2.5323,197.19,197.14,2.5328]
[1731010242531,2.5323,197.18,197.14,2.5328]
[1731010243533,3.42,197.23,197.11,19.46289367]
[1731010243836,1.1751,197.24,197.11,19.46289367]
[1731010243837,1.1751,197.24,197.14,19.46289367]
[1731010244134,1.1751,197.24,197.15,1.1902]
[1731010244339,2.5315,197.25,197.21,2.5318]
[1731010245429,1.213,197.29,197.17,22.88289367]
[1731010245634,0.75866922,197.28,197.16,3.42]
[1731010246030,2.5317,197.23,197.19,2.5321]
[1731010246244,1.213,197.29,197.16,3.42]
[1731010246540,1.98449004,197.28,197.16,3.42]
[1731010246738,20.22158371,197.27,197.15,1.1902]
[1731010246946,0.75869004,197.26,197.15,1.1902]
[1731010247139,0.75869004,197.26,197.1,19.46289367]
[1731010247335,2.5322,197.19,197.15,2.5326]
[1731010248542,2.5322,197.19,197.14,2.5327]
[1731010249040,2.5322,197.19,197.11,1.2165]
[1731010249041,2.5323,197.18,197.11,1.2165]
[1731010249440,2.5323,197.18,197.13,2.5328]
[1731010249648,2.5325,197.17,197.09,1.1757]
[1731010250248,2.5324,197.18,197.12,2.5329]
[1731010250741,1.2236,197.22,197.12,2.5329]
[1731010251045,2.5324,197.17,197.12,2.5329]
[1731010251242,2.5324,197.17,197.13,2.5329]
[1731010251637,2.5324,197.17,197.07,5.49589459]
[1731010252348,2.5324,197.17,197.08,4.27939459]
[1731010252544,1.2236,197.22,197.08,4.27939459]
[1731010252844,2.5326,197.16,197.08,4.27939459]
[1731010253046,1.2236,197.22,197.1,2.5333]
[1731010253236,19.46289367,197.21,197.1,2.5333]
[1731010253645,1.2198,197.2,197.1,2.5333]
[1731010253845,2.5327,197.15,197.1,2.5333]
[1731010254446,1.2198,197.2,197.08,4.27939459]
[1731010254646,2.5325,197.16,197.11,2.5331]
[1731010255052,2.5325,197.16,197.12,2.5329]
[1731010255252,2.5324,197.17,197.12,2.5329]
[1731010255554,1.2198,197.2,197.14,2.5327]
[1731010255952,2.5322,197.19,197.14,2.5327]
[1731010256648,1.2198,197.2,197.14,2.5327]
[1731010256649,2.5323,197.18,197.14,2.5327]
[1731010257050,1.2198,197.2,197.14,2.5327]
[1731010257249,1.2198,197.2,197.07,4.27980902]
[1731010257558,1.2198,197.2,197.12,2.533]
[1731010257747,1.2198,197.2,197.07,4.27980902]
[1731010258053,2.5326,197.16,197.11,2.5331]
[1731010259451,2.5326,197.16,197.06,22.88289367]
[1731010260259,1.2198,197.2,197.06,22.88289367]
[1731010260856,1.2198,197.2,197.07,4.28422155]
[1731010261057,2.5325,197.17,197.12,2.533]
[1731010261357,1.2198,197.2,197.06,22.88289367]
[1731010261555,2.5327,197.15,197.1,2.5333]
[1731010261755,2.5327,197.15,197.06,12.16717997]
[1731010262157,2.5327,197.15,197.1,2.5332]
[1731010262668,2.533,197.13,197.06,12.16717997]
[1731010262869,2.533,197.13,197.08,2.5335]
[1731010263165,2.5332,197.11,197.03,12.16717997]
[1731010263364,2.5332,197.11,197.06,2.5337]
[1731010263866,2.5334,197.1,197.03,2.5341]
[1731010264061,12.16717997,197.13,197.03,2.5341]
[1731010264260,12.16717997,197.1,197.0,13.34227997]
[1731010264562,2.5339,197.06,197.0,15.87677997]
[1731010264866,2.5339,197.06,197.0,2.5345]
[1731010266556,2.5339,197.06,197.01,2.5343]
[1731010267064,1.2354,197.14,197.02,12.16717997]
[1731010267265,2.5061,197.14,197.02,20.67525524]
[1731010267861,2.5331,197.12,197.07,2.5337]
[1731010268565,2.5061,197.14,197.02,20.67525524]
[1731010268566,2.5335,197.09,197.02,20.67525524]
[1731010269267,2.5335,197.09,197.04,2.5341]
[1731010269460,2.5333,197.1,197.02,20.67525524]
[1731010269663,2.5061,197.14,197.02,20.67525524]
[1731010270065,2.5332,197.11,197.02,20.67525524]
[1731010270262,2.5061,197.14,197.02,20.67525524]
[1731010271065,2.5332,197.12,197.07,2.5336]
[1731010271362,2.5332,197.12,197.02,20.67525524]
[1731010271673,2.5332,197.12,197.07,2.5336]
[1731010273082,2.5333,197.11,197.07,2.5336]
[1731010273476,1.2707,197.14,197.08,2.5336]
[1731010273671,1.2707,197.14,197.02,20.67525524]
[1731010273672,3.8036,197.14,197.02,20.67525524]
[1731010273881,1.2707,197.14,197.02,21.85735524]
[1731010274082,1.2688,197.19,197.06,19.47165524]
[1731010274284,20.65905524,197.21,197.07,4.6172]
[1731010274578,20.65905524,197.21,197.13,2.5328]
[1731010275476,2.5323,197.19,197.15,2.5326]
[1731010276382,1.1874,197.21,197.16,2.5325]
[1731010276685,1.1874,197.21,197.13,3.42]
[1731010276888,1.1874,197.21,197.13,5.99745379]
[1731010277188,21.86245524,197.27,197.13,5.99745379]
[1731010277378,2.5315,197.24,197.13,5.99745379]
[1731010277578,21.86245524,197.27,197.17,2.5324]
[1731010277776,21.86245524,197.27,197.13,5.99745379]
[1731010277982,0.75865917,197.26,197.13,5.99745379]
[1731010278184,21.86245524,197.27,197.16,2.5325]
[1731010278391,19.47165524,197.24,197.16,2.5325]
[1731010279885,19.47165524,197.24,197.03,19.47165524]
[1731010279886,19.47165524,197.2,197.03,19.47165524]
[1731010280085,19.47165524,197.17,197.04,5.7726]
[1731010280477,2.5331,197.12,197.04,5.7726]
[1731010280988,1.268,197.16,197.04,8.3066]
[1731010281388,1.268,197.16,197.07,2.5337]
[1731010281789,4.6464,197.18,197.04,5.7726]
[1731010281994,1.2264,197.18,197.08,2.5335]
[1731010282391,1.2264,197.18,197.04,5.7726]
[1731010282594,2.5327,197.15,197.04,5.7726]
[1731010282789,1.2769,197.19,197.07,19.47165524]
[1731010283480,2.5326,197.16,197.09,2.5333]
[1731010284094,2.5327,197.15,197.09,2.5333]
[1731010284491,1.2769,197.19,197.09,2.5333]
[1731010284690,2.5326,197.16,197.1,2.5333]
[1731010284888,2.5326,197.16,197.1,5.9533]
[1731010285088,1.2769,197.19,197.1,3.42]
[1731010285288,2.5326,197.17,197.1,5.9534]
[1731010285494,1.2769,197.19,197.1,3.42]
[1731010286593,2.5327,197.16,197.1,5.9534]
[1731010287297,1.2769,197.19,197.08,3.42]
[1731010287687,1.215,197.18,197.08,3.42]
[1731010288189,2.5327,197.15,197.08,3.42]
[1731010288390,1.215,197.18,197.08,3.42]
[1731010288794,2.5335,197.1,197.08,3.42]
[1731010289194,1.215,197.18,197.08,3.42]
[1731010289393,1.2769,197.19,197.09,12.16400445]
[1731010290086,13.44090445,197.19,197.09,12.16400445]
[1731010290289,13.44090445,197.19,197.08,3.42]
[1731010291298,19.56091002,197.19,197.08,3.42]
[1731010291491,13.44090445,197.19,197.08,3.42]
[1731010292300,2.5331,197.13,197.08,3.42]
[1731010292494,13.44090445,197.19,197.08,3.42]
[1731010292993,2.5333,197.11,197.08,3.42]
[1731010293701,12.16400445,197.16,197.08,3.42]
[1731010293896,2.5334,197.1,197.08,3.42]
[1731010294597,12.16400445,197.16,197.08,3.42]
[1731010294800,2.5333,197.11,197.08,3.42]
[1731010295502,2.5331,197.12,197.08,5.9536]
[1731010300099,2.5334,197.11,197.08,3.42]
[1731010300299,12.16400445,197.14,197.05,2.5339]
[1731010300499,12.16400445,197.14,197.04,2.3526]
[1731010301810,12.16400445,197.14,197.06,2.5339]
[1731010303913,2.5335,197.09,197.05,2.534]
[1731010304102,12.16400445,197.16,197.04,2.3526]
[1731010305116,12.16400445,197.16,197.06,2.5339]
[1731010305507,1.293,197.17,197.05,12.16400445]
[1731010305706,12.16400445,197.14,197.04,2.3526]
[1731010305928,12.16400445,197.14,197.02,15.58400445]
[1731010306116,2.534,197.05,197.02,2.5343]
[1731010306316,2.534,197.05,196.99,15.58400445]
[1731010306620,12.16400445,197.09,196.99,15.58400445]
[1731010307017,2.5342,197.04,197.0,2.5346]
[1731010307213,2.5342,197.04,196.99,15.58400445]
[1731010307417,2.5342,197.04,196.99,12.16400445]
[1731010307615,2.5342,197.04,196.99,14.69870445]
[1731010307807,12.16400445,197.06,196.96,5.9007]
[1731010308118,12.16400445,197.06,196.97,2.535]
[1731010308319,2.5347,197.0,196.96,2.4807]
[1731010308512,2.5347,197.0,196.96,1.2492]
[1731010308711,2.5347,197.0,196.95,59.71828688]
[1731010309213,12.16400445,197.06,196.95,59.71828688]
[1731010309517,15.58400445,197.06,196.95,57.18308688]
[1731010309716,1.2499,197.08,196.98,12.16400445]
[1731010310013,2.5342,197.04,197.0,2.5345]
[1731010310315,2.5342,197.04,196.98,12.16400445]
[1731010310505,2.5342,197.04,196.99,2.5347]
[1731010311315,2.5342,197.04,197.0,2.5346]
[1731010312611,1.2499,197.08,196.96,3.42]
[1731010312816,2.5344,197.02,196.96,3.42]
[1731010313318,2.5347,197.0,196.95,57.18308688]
[1731010313519,1.2499,197.08,196.95,45.01908243]
[1731010313520,12.16400445,197.04,196.95,45.01908243]
[1731010313916,2.5348,197.0,196.95,45.01908243]
[1731010314116,12.16400445,197.04,196.95,45.01908243]
[1731010314317,12.16400445,197.04,196.95,47.55428243]
[1731010314516,2.5348,197.0,196.95,47.55428243]
[1731010314919,2.5349,196.99,196.95,45.01908243]
[1731010315118,15.56400445,197.04,196.95,45.01908243]
[1731010315422,2.5349,196.99,196.95,45.01908243]
[1731010316723,2.5349,196.99,196.95,47.55438243]
[1731010317123,2.5349,196.99,196.95,2.5353]
[1731010318324,2.5346,197.01,196.97,2.5349]
[1731010318528,3.4,197.04,196.95,12.16400445]
[1731010318926,2.5345,197.02,196.97,2.535]
[1731010319126,3.4,197.04,196.97,2.535]
[1731010319430,12.16400445,197.05,196.95,12.16400445]
[1731010319629,12.16400445,197.05,196.98,2.5349]
[1731010319630,2.5345,197.02,196.98,2.5349]
[1731010319834,12.16400445,197.05,196.95,12.16400445]
[1731010320129,2.5345,197.02,196.97,2.535]
[1731010320330,12.16400445,197.05,196.97,2.535]
[1731010320331,4.60044397,197.17,197.01,12.16400445]
[1731010320519,13.44890445,197.15,197.01,14.70780551]
[1731010320719,13.44890445,197.15,197.02,3.42]
[1731010320930,12.16400445,197.13,197.02,3.42]
[1731010321328,12.16400445,197.13,197.01,12.16400445]
[1731010321530,2.534,197.06,197.01,2.5345]
[1731010322026,2.5341,197.05,197.0,2.5346]
[1731010323229,3.42,197.12,197.0,12.16400445]
[1731010323429,12.16400445,197.1,197.0,12.16400445]
[1731010324233,2.5342,197.04,196.99,2.5347]
[1731010324533,12.16400445,197.13,197.01,12.16400445]
[1731010324731,12.16400445,197.13,197.06,2.5339]
[1731010324732,2.5333,197.11,197.06,2.5339]
[1731010325330,2.5331,197.12,197.07,2.5336]
[1731010325530,12.16400445,197.1,196.98,12.16400445]
[1731010325933,2.5338,197.07,197.03,2.5343]
[1731010326732,2.5338,197.07,197.02,2.5344]
[1731010327037,2.534,197.06,196.98,12.16400445]
[1731010327233,12.16400445,197.1,196.99,2.5348]
[1731010327439,15.56400445,197.1,196.99,2.5348]
[1731010327934,2.5341,197.04,197.0,2.5346]
[1731010332138,2.534,197.06,197.0,2.5346]
[1731010332342,1.1682,197.07,197.0,2.5346]
[1731010332731,2.5341,197.05,197.0,2.5346]
[1731010333035,1.1682,197.07,197.0,12.16400445]
[1731010333235,3.4,197.1,197.0,12.16400445]
[1731010333441,2.5338,197.07,197.0,12.16400445]
[1731010333644,2.5338,197.07,197.02,2.5343]
[1731010334235,2.5337,197.08,197.03,2.5342]
[1731010334537,12.16400445,197.13,197.03,12.16400445]
[1731010334941,2.5334,197.1,197.05,2.534]
[1731010335139,12.16400445,197.13,197.05,2.534]
[1731010335844,2.5335,197.09,197.05,2.534]
[1731010336237,2.5334,197.11,197.06,2.5338]
[1731010336442,1.2187,197.14,197.03,3.4]
[1731010336643,1.2187,197.14,197.04,13.36430445]
[1731010336938,2.5336,197.08,197.05,2.5339]
[1731010337435,12.16400445,197.13,197.03,5.9343]
[1731010337436,2.5338,197.07,197.03,5.9343]
[1731010337743,1.2187,197.14,197.0,12.16400445]
[1731010337744,12.16400445,197.1,197.0,12.16400445]
[1731010338135,2.5341,197.05,197.01,2.5344]
[1731010338343,15.56400445,197.06,196.91,1.207]
[1731010338545,15.56400445,197.06,196.91,13.37100445]
[1731010338546,2.5349,196.99,196.91,13.37100445]
[1731010339146,2.5349,196.99,196.93,2.5355]
[1731010339337,12.16400445,197.03,196.93,2.5355]
[1731010339547,2.5349,196.98,196.93,2.5355]
[1731010340651,2.5348,196.99,196.93,2.5355]
[1731010340948,12.16400445,197.03,196.94,2.5353]
[1731010341449,2.5349,196.98,196.94,2.5353]
[1731010342039,12.16400445,197.0,196.88,14.68573589]
[1731010342244,12.16400445,197.0,196.88,12.16400445]
[1731010342439,2.5355,196.94,196.88,2.5361]
[1731010343148,2.5351,196.97,196.89,2.536]
[1731010343353,3.4,197.0,196.89,2.536]
[1731010344551,3.4,197.0,196.88,12.16400445]
[1731010345348,2.5353,196.95,196.91,2.5358]
[1731010345553,2.5353,196.95,196.88,12.16400445]
[1731010346844,15.56400445,197.01,196.88,12.16400445]
[1731010347347,15.56400445,197.01,196.86,12.16400445]
[1731010347348,12.16400445,196.98,196.86,12.16400445]
[1731010347547,2.5358,196.93,196.86,12.16400445]
[1731010348749,2.5358,196.93,196.88,2.5364]
[1731010349146,2.5355,196.95,196.86,12.16400445]
[1731010349351,12.16400445,196.94,196.83,2.537]
[1731010349553,13.38970445,196.94,196.83,2.537]
[1731010349758,2.5365,196.87,196.81,12.16400445]
[1731010350156,12.16400445,196.91,196.78,5.066]
[1731010350352,12.16400445,196.85,196.78,5.066]
[1731010350851,2.5371,196.83,196.78,5.066]
[1731010351165,1.2545,196.84,196.78,5.066]
[1731010351452,1.2545,196.84,196.78,7.6037]
[1731010352455,2.5371,196.83,196.77,5.066]
[1731010352954,2.5374,196.81,196.77,5.066]
[1731010353263,12.16400445,196.83,196.77,5.066]
[1731010353456,12.16400445,196.83,196.74,2.5382]
[1731010353457,13.38410445,196.83,196.75,5.066]
[1731010354949,13.38410445,196.83,196.75,3.1188]
[1731010355150,13.38410445,196.83,196.66,5.066]
[1731010355151,7.09100445,196.75,196.66,5.066]
[1731010355359,2.5386,196.71,196.63,12.16400445]
[1731010356062,2.5384,196.73,196.65,2.5393]
[1731010356260,3.4,196.74,196.63,12.16400445]
[1731010356564,12.16400445,196.72,196.59,112.44986921]
[1731010356766,12.16400445,196.7,196.59,124.61387366]
[1731010356963,12.16400445,196.7,196.59,122.07387366]
[1731010357156,15.21,196.77,196.59,122.07387366]
[1731010357458,12.16400445,196.71,196.59,122.07387366]
[1731010357658,3.4,196.7,196.59,122.07387366]
[1731010358362,2.5391,196.68,196.63,2.5396]
[1731010358557,3.4,196.7,196.63,2.5396]
[1731010359864,2.5389,196.69,196.63,2.5396]
[1731010360566,2.539,196.68,196.63,2.5396]
[1731010360958,3.4,196.7,196.63,2.5396]
[1731010361170,12.16400445,196.69,196.59,109.90986921]
[1731010361664,12.16400445,196.69,196.59,122.07387366]
[1731010362062,2.539,196.68,196.62,2.5397]
[1731010362367,15.56400445,196.72,196.61,12.16400445]
[1731010362572,2.5391,196.68,196.61,2.5398]
[1731010362758,15.56400445,196.72,196.61,12.16400445]
[1731010363272,15.56400445,196.75,196.64,12.16400445]
[1731010363563,12.16400445,196.69,196.46,15.21]
[1731010363769,3.4,196.68,196.56,12.16400445]
[1731010364365,12.16400445,196.69,196.56,12.16400445]
[1731010364567,12.16400445,196.69,196.55,2.50627308]
[1731010364568,12.16400445,196.69,196.6,2.54]
[1731010364769,12.16400445,196.69,196.58,12.16400445]
[1731010365162,2.5392,196.67,196.61,2.5399]
[1731010366164,2.5395,196.65,196.59,2.5401]
[1731010366370,2.5395,196.65,196.56,1.2483]
[1731010366371,12.16400445,196.69,196.56,13.41230445]
[1731010366763,2.5393,196.66,196.59,2.5401]
[1731010366968,12.16400445,196.69,196.56,1.2483]
[1731010367169,2.4937,196.68,196.56,1.2483]
[1731010367468,2.4937,196.68,196.58,2.5402]
[1731010367869,2.5396,196.64,196.58,2.5402]
[1731010368270,2.4937,196.68,196.58,2.5402]
[1731010368970,12.16400445,196.67,196.56,1.2483]
[1731010369167,12.16400445,196.64,196.53,12.16400445]
[1731010369669,2.5401,196.6,196.52,12.16400445]
[1731010369871,1.41170445,196.64,196.52,12.16400445]
[1731010370564,1.41170445,196.64,196.54,2.5408]
[1731010370565,2.5401,196.6,196.54,2.5408]
[1731010370763,1.41170445,196.64,196.52,12.16400445]
[1731010371371,1.41170445,196.64,196.53,2.5409]
[1731010371574,12.16400445,196.62,196.52,12.16400445]
[1731010372160,12.16400445,196.64,196.52,12.16400445]
[1731010372775,2.5403,196.58,196.53,2.5409]
[1731010373472,2.5401,196.6,196.54,2.5407]
[1731010373861,12.16400445,196.64,196.52,12.16400445]
[1731010374067,12.16400445,196.64,196.56,2.5404]
[1731010374267,12.16400445,196.64,196.54,12.16400445]
[1731010374576,2.5396,196.64,196.59,2.5401]
[1731010375266,2.5396,196.64,196.6,2.54]
[1731010377167,2.5393,196.66,196.6,2.54]
[1731010377574,2.5393,196.66,196.62,2.5397]
[1731010377971,2.5391,196.67,196.57,12.16400445]
[1731010378173,2.5391,196.67,196.63,2.5396]
[1731010378477,2.5394,196.66,196.57,12.16400445]
[1731010378676,2.5394,196.66,196.61,2.5398]
[1731010379475,15.91330445,196.68,196.57,12.16400445]
[1731010379881,15.91330445,196.68,196.55,3.4]
[1731010380078,2.5397,196.63,196.57,2.5403]
[1731010380274,12.16400445,196.65,196.53,12.16400445]
[1731010380582,2.5399,196.61,196.56,2.5405]
[1731010380781,12.16400445,196.65,196.53,12.16400445]
[1731010381183,2.5398,196.62,196.53,12.16400445]
[1731010381982,2.5398,196.62,196.57,2.5403]
[1731010383278,5.9393,196.66,196.6,2.5399]
[1731010383782,2.5393,196.66,196.6,2.5399]
[1731010384277,2.5395,196.65,196.59,2.5401]
[1731010384481,16.77420445,196.68,196.56,12.16400445]
[1731010385182,2.5393,196.66,196.61,2.5398]
[1731010385888,13.37420445,196.68,196.62,2.5397]
[1731010386177,1.2102,196.68,196.59,12.16400445]
[1731010386386,12.16400445,196.71,196.63,2.5396]
[1731010386680,45.39570848,196.72,196.61,12.16400445]
[1731010387475,2.5387,196.71,196.67,2.5391]
[1731010389776,2.5388,196.7,196.66,2.5392]
[1731010389976,4.5971,196.74,196.62,12.16400445]
[1731010390995,2.5386,196.71,196.67,2.539]
[1731010391977,2.5386,196.71,196.62,12.16400445]
[1731010392183,4.5971,196.74,196.64,12.16400445]
[1731010392679,2.5384,196.73,196.64,12.16400445]
[1731010392990,2.5384,196.73,196.64,14.73543595]
[1731010393979,3.4,196.74,196.64,12.16400445]
[1731010394180,2.5388,196.7,196.62,12.16400445]
[1731010394588,2.5385,196.72,196.67,2.539]
[1731010394789,12.16400445,196.77,196.65,12.16400445]
[1731010394988,2.446,196.79,196.68,12.16400445]
[1731010395287,2.538,196.76,196.71,2.5385]
[1731010395678,2.446,196.79,196.69,1.2702]
[1731010395679,2.5381,196.75,196.69,1.2702]
[1731010395883,2.446,196.79,196.69,1.2702]
[1731010396882,1.2095,196.79,196.69,1.2702]
[1731010397184,2.5376,196.79,196.75,2.538]
[1731010397390,45.3776218,196.8,196.71,12.16400445]
[1731010397595,15.56400445,196.83,196.71,12.16400445]
[1731010397893,2.3666,196.85,196.73,12.16400445]
[1731010398085,1.1988,196.85,196.73,12.16400445]
[1731010398289,2.5366,196.85,196.8,2.5371]
[1731010398485,12.16400445,196.88,196.76,12.16400445]
[1731010398688,12.16400445,196.88,196.77,1.226]
[1731010399395,2.5364,196.86,196.77,1.226]
[1731010399891,12.16400445,196.88,196.77,1.226]
[1731010399892,2.5364,196.87,196.81,2.5369]
[1731010400990,2.5364,196.86,196.81,2.5369]
[1731010401393,2.5364,196.86,196.79,12.16400445]
[1731010401991,2.5364,196.86,196.82,2.5369]
[1731010402493,2.5366,196.84,196.79,2.5373]
[1731010403501,12.16400445,196.86,196.7,1.2177]
[1731010403794,12.16400445,196.82,196.7,2.4646]
[1731010404096,12.16400445,196.82,196.74,2.5379]
[1731010404388,3.4,196.83,196.72,12.16400445]
[1731010404593,13.41460445,196.85,196.78,2.5374]
[1731010404788,3.4,196.88,196.74,12.16400445]
[1731010404789,2.5369,196.82,196.74,12.16400445]
[1731010405390,2.5369,196.82,196.76,2.5376]
[1731010405585,12.16400445,196.85,196.74,12.16400445]
[1731010405789,2.5372,196.8,196.72,12.16400445]
[1731010406092,12.16400445,196.85,196.75,2.5379]
[1731010406292,2.5375,196.8,196.75,2.5379]
[1731010406794,2.5375,196.8,196.76,2.5379]
[1731010407393,2.5375,196.8,196.75,2.538]
[1731010407797,2.5375,196.8,196.72,12.16400445]
[1731010407996,2.5375,196.8,196.75,2.538]
[1731010408602,12.16400445,196.83,196.72,12.16400445]
[1731010408796,12.16400445,196.86,196.74,12.16400445]
[1731010408995,2.5373,196.81,196.77,2.5378]
[1731010409204,12.16400445,196.86,196.74,12.16400445]
[1731010409497,2.5374,196.8,196.76,2.5378]
[1731010409997,15.21,197.0,196.76,2.54918086]
[1731010410200,2.5367,196.86,196.77,13.36170445]
[1731010410499,12.16400445,196.9,196.77,13.36170445]
[1731010410500,12.16400445,196.9,196.8,12.16400445]
[1731010410703,12.16400445,196.93,196.8,12.16400445]
[1731010410898,12.16400445,196.93,196.83,12.16400445]
[1731010411098,3.4,196.96,196.83,12.16400445]
[1731010411099,12.16400445,196.96,196.83,12.16400445]
[1731010411299,12.16400445,196.96,196.85,12.16400445]
[1731010411497,1.1911,196.97,196.86,1.1828]
[1731010411693,12.16400445,196.98,196.88,12.16400445]
[1731010411901,12.16400445,197.01,196.88,12.16400445]
[1731010412099,12.16400445,197.01,196.91,12.16400445]
[1731010412399,12.16400445,197.01,196.93,2.5356]
[1731010413502,14.70300445,197.04,196.94,2.5355]
[1731010413705,14.70300445,197.04,196.91,12.16400445]
[1731010414099,14.70300445,197.04,196.91,15.56400445]
[1731010414607,14.70300445,197.04,196.95,2.5355]
[1731010414808,14.70300445,197.04,196.91,15.56400445]
[1731010414809,14.70300445,197.04,196.93,12.16400445]
[1731010415003,14.70300445,197.04,196.97,2.5352]
[1731010416005,14.70300445,197.04,196.98,2.5351]
[1731010417698,70.93079451,197.05,196.98,2.5351]
[1731010417902,83.09479896,197.05,196.99,2.535]
[1731010418104,83.09479896,197.05,196.94,3.4]
[1731010419906,83.09479896,197.05,196.98,2.5351]
[1731010421209,83.09479896,197.05,196.99,2.5349]
[1731010423005,83.09479896,197.05,196.97,2.5352]
[1731010423399,83.09479896,197.05,196.94,1.2464]
[1731010424509,83.09479896,197.05,196.99,2.5349]
[1731010426615,70.93079451,197.05,196.99,2.5349]
[1731010426912,70.93079451,197.05,197.0,2.5348]
[1731010428112,12.16400445,197.03,196.98,2.5351]
[1731010428409,12.16400445,197.03,196.93,12.16400445]
[1731010428610,12.16400445,197.03,196.92,3.4]
[1731010429509,12.16400445,197.01,196.9,15.56400445]